Workbook

Sheet Sheet1
A1: 岳阳县事业单位2025年集中公开招聘工作人员 综合成绩公示
A2: 序号 | B2: 岗位 代码 | C2: 应聘岗位 | D2: 姓名 | E2: 准考证号 | F2: 笔试成绩 | G2: 面试成绩 | H2: 综合成绩 | I2: 暂排名 | J2: 面试室 | K2: 备注
A3: 1 | B3: A01 | C3: 文字综合（一）A01 | D3: 谭灿明 | E3: 20250104526 | F3: 74.50 | G3: 79.04 | H3: =F3*0.7+G3*0.3 -> 75.862 | I3: 2 | J3: 面试1室
A4: 2 | B4: A01 | C4: 文字综合（一）A01 | D4: 毛督 | E4: 20250104612 | F4: 73.60 | G4: 83.74 | H4: =F4*0.7+G4*0.3 -> 76.642 | I4: 1 | J4: 面试1室 | K4: 拟体检入围
A5: 3 | B5: A02 | C5: 文字综合（二）A02 | D5: 陈璐 | E5: 20250204902 | F5: 82.05 | G5: 80.90 | H5: 81.705 | I5: 1 | J5: 面试1室 | K5: 拟体检入围
A6: 4 | B6: A02 | C6: 文字综合（二）A02 | D6: 刘洁 | E6: 20250205025 | F6: 77.75 | G6: 缺考 | H6: =F6*0.7 -> 54.425 | J6: 面试1室
A7: 5 | B7: A03 | C7: 文字综合（三）A03 | D7: 唐婧 | E7: 20250304725 | F7: 81.30 | G7: 83.76 | H7: 82.038 | I7: 1 | J7: 面试1室 | K7: 拟体检入围
A8: 6 | B8: A03 | C8: 文字综合（三）A03 | D8: 李辰 | E8: 20250305020 | F8: 75.50 | G8: 79.84 | H8: 76.802 | I8: 2 | J8: 面试1室
A9: 7 | B9: A04 | C9: 文字综合（四）A04 | D9: 张慧 | E9: 20250404719 | F9: 78.00 | G9: 83.06 | H9: 79.518 | I9: 1 | J9: 面试1室 | K9: 拟体检入围
A10: 8 | B10: A04 | C10: 文字综合（四）A04 | D10: 王罗庚 | E10: 20250404503 | F10: 76.75 | G10: 缺考 | H10: =F10*0.7 -> 53.725 | J10: 面试1室
A11: 9 | B11: A05 | C11: 文字综合（五）A05 | D11: 张荣幸 | E11: 20250504628 | F11: 73.30 | G11: 78.84 | H11: 74.962 | I11: 1 | J11: 面试1室 | K11: 拟体检入围
A12: 10 | B12: A05 | C12: 文字综合（五）A05 | D12: 陈瑾灵 | E12: 20250505004 | F12: 71.55 | G12: 77.24 | H12: 73.257 | I12: 2 | J12: 面试1室
A13: 11 | B13: A06 | C13: 建筑工程管理人员A06 | D13: 张紫玥 | E13: 20250606323 | F13: 79.21 | G13: 79.82 | H13: 79.393 | I13: 1 | J13: 面试1室 | K13: 拟体检入围
A14: 12 | B14: A06 | C14: 建筑工程管理人员A06 | D14: 罗语欢 | E14: 20250606327 | F14: 78.03 | G14: 82.34 | H14: 79.323 | I14: 2 | J14: 面试1室
A15: 13 | B15: A07 | C15: 综合管理（一）A07 | D15: 饶索娟 | E15: 20250700406 | F15: 78.63 | G15: 83.02 | H15: 79.947 | I15: 1 | J15: 面试1室 | K15: 拟体检入围
A16: 14 | B16: A07 | C16: 综合管理（一）A07 | D16: 罗欢 | E16: 20250700722 | F16: 74.30 | G16: 83.86 | H16: 77.168 | I16: 2 | J16: 面试1室
A17: 15 | B17: A08 | C17: 人事专干A08 | D17: 毛书康 | E17: 20250807115 | F17: 79.48 | G17: 82.34 | H17: 80.338 | I17: 1 | J17: 面试1室 | K17: 拟体检入围
A18: 16 | B18: A08 | C18: 人事专干A08 | D18: 李琢璞 | E18: 20250807219 | F18: 76.22 | G18: 78.34 | H18: 76.856 | I18: 2 | J18: 面试1室
A19: 17 | B19: A09 | C19: 综合管理（二）A09 | D19: 李楠 | E19: 20250903619 | F19: 72.84 | G19: 76.48 | H19: 73.932 | I19: 1 | J19: 面试1室 | K19: 拟体检入围
A20: 18 | B20: A09 | C20: 综合管理（二）A09 | D20: 吴晶 | E20: 20250902615 | F20: 70.60 | G20: 81.36 | H20: 73.828 | I20: 2 | J20: 面试1室
A21: 19 | B21: A10 | C21: 综合管理（八）A10 | D21: 张定 | E21: 20251003626 | F21: 81.92 | G21: 77.36 | H21: 80.552 | I21: 1 | J21: 面试1室 | K21: 拟体检入围
A22: 20 | B22: A10 | C22: 综合管理（八）A10 | D22: 伏锦 | E22: 20251000316 | F22: 77.14 | G22: 缺考 | H22: =F22*0.7 -> 53.998 | J22: 面试1室
A23: 21 | B23: A11 | C23: 综合管理（三）A11 | D23: 万梓康 | E23: 20251101218 | F23: 74.93 | G23: 80.12 | H23: 76.487 | I23: 1 | J23: 面试1室 | K23: 拟体检入围
A24: 22 | B24: A11 | C24: 综合管理（三）A11 | D24: 黄岳烽 | E24: 20251102701 | F24: 71.64 | G24: 82.32 | H24: 74.844 | I24: 2 | J24: 面试1室
A25: 23 | B25: A12 | C25: 综合管理（九）A12 | D25: 易煜泓 | E25: 20251207016 | F25: 72.13 | G25: 81.24 | H25: 74.863 | I25: 1 | J25: 面试1室 | K25: 拟体检入围
A26: 24 | B26: A12 | C26: 综合管理（九）A12 | D26: 许宏腾 | E26: 20251207008 | F26: 69.69 | G26: 78.66 | H26: 72.381 | I26: 2 | J26: 面试1室
A27: 25 | B27: A13 | C27: 综合管理（四）A13 | D27: 袁佳洁 | E27: 20251303810 | F27: 78.59 | G27: 77.50 | H27: 78.263 | I27: 1 | J27: 面试1室 | K27: 拟体检入围
A28: 26 | B28: A13 | C28: 综合管理（四）A13 | D28: 林亮 | E28: 20251300908 | F28: 72.76 | G28: 缺考 | H28: =F28*0.7 -> 50.932 | J28: 面试1室
A29: 27 | B29: A14 | C29: 综合管理（五）A14 | D29: 王威 | E29: 20251400604 | F29: 80.93 | G29: 78.82 | H29: 80.297 | I29: 1 | J29: 面试1室 | K29: 拟体检入围
A30: 28 | B30: A14 | C30: 综合管理（五）A14 | D30: 胡柏 | E30: 20251400515 | F30: 77.64 | G30: 81.44 | H30: 78.780 | I30: 2 | J30: 面试1室
A31: 29 | B31: A15 | C31: 综合管理（六）A15 | D31: 万勇 | E31: 20251501809 | F31: 70.78 | G31: 78.40 | H31: 73.066 | I31: 1 | J31: 面试1室 | K31: 拟体检入围
A32: 30 | B32: A15 | C32: 综合管理（六）A15 | D32: 余美瑶 | E32: 20251503019 | F32: 66.28 | G32: 76.54 | H32: 69.358 | I32: 2 | J32: 面试1室
A33: 31 | B33: A16 | C33: 综合管理（七）A16 | D33: 湛康 | E33: 20251606504 | F33: 72.97 | G33: 80.56 | H33: 75.247 | I33: 1 | J33: 面试1室 | K33: 拟体检入围
A34: 32 | B34: A16 | C34: 综合管理（七）A16 | D34: 彭诞生 | E34: 20251606815 | F34: 71.24 | G34: 79.62 | H34: 73.754 | I34: 2 | J34: 面试1室
A35: 33 | B35: A17 | C35: 法制专干（一）A17 | D35: 赵佳杰 | E35: 20251707512 | F35: 74.75 | G35: 82.82 | H35: 77.171 | I35: 1 | J35: 面试2室 | K35: 拟体检入围
A36: 34 | B36: A17 | C36: 法制专干（一）A17 | D36: 湛发良 | E36: 20251707424 | F36: 71.31 | G36: 缺考 | H36: =F36*0.7 -> 49.917 | J36: 面试2室
A37: 35 | B37: A18 | C37: 矿山安全监管员A18 | D37: 李宇星 | E37: 20251807702 | F37: 74.50 | G37: 82.92 | H37: =F37*0.7+G37*0.3 -> 77.026 | I37: 1 | J37: 面试2室 | K37: 拟体检入围
A38: 36 | B38: A19 | C38: 法制专干（二）A19 | D38: 何芳 | E38: 20251907430 | F38: 70.38 | G38: 83.56 | H38: 74.334 | I38: 1 | J38: 面试2室 | K38: 拟体检入围
A39: 37 | B39: A19 | C39: 法制专干（二）A19 | D39: 黄境伸 | E39: 20251907518 | F39: 69.30 | G39: 83.84 | H39: 73.662 | I39: 2 | J39: 面试2室
A40: 38 | B40: A20 | C40: 法制专干（三）A20 | D40: 胡嘉萌 | E40: 20252007418 | F40: 78.23 | G40: 83.06 | H40: 79.679 | I40: 1 | J40: 面试2室 | K40: 拟体检入围
A41: 39 | B41: A20 | C41: 法制专干（三）A20 | D41: 樊雪怡 | E41: 20252007427 | F41: 77.20 | G41: 82.12 | H41: 78.676 | I41: 2 | J41: 面试2室
A42: 40 | B42: A21 | C42: 法制专干（四）A21 | D42: 郑嘉璐 | E42: 20252107509 | F42: 73.02 | G42: 81.92 | H42: 75.690 | I42: 1 | J42: 面试2室 | K42: 拟体检入围
A43: 41 | B43: A21 | C43: 法制专干（四）A21 | D43: 王宇菁 | E43: 20252107608 | F43: 71.13 | G43: 82.56 | H43: 74.559 | I43: 2 | J43: 面试2室
A44: 42 | B44: B01 | C44: 房地产测量技术人员B01 | D44: 费巍 | E44: 20252207625 | F44: 70.57 | G44: 81.72 | H44: 73.915 | I44: 1 | J44: 面试2室 | K44: 拟体检入围
A45: 43 | B45: B01 | C45: 房地产测量技术人员B01 | D45: 周灿 | E45: 20252207624 | F45: 66.00 | G45: 缺考 | H45: =F45*0.7 -> 46.200 | J45: 面试2室
A46: 44 | B46: B02 | C46: 财务人员（一）B02 | D46: 左鸿霏 | E46: 20252308018 | F46: 79.38 | G46: 82.36 | H46: 80.274 | I46: 1 | J46: 面试2室 | K46: 拟体检入围
A47: 45 | B47: B02 | C47: 财务人员（一）B02 | D47: 蒋伊伊 | E47: 20252307909 | F47: 74.42 | G47: 80.98 | H47: 76.388 | I47: 2 | J47: 面试2室
A48: 46 | B48: B03 | C48: 财务人员（二）B03 | D48: 杨世俊 | E48: 20252408127 | F48: 78.04 | G48: 81.14 | H48: 78.970 | I48: 1 | J48: 面试2室 | K48: 拟体检入围
A49: 47 | B49: B03 | C49: 财务人员（二）B03 | D49: 张力 | E49: 20252408128 | F49: 74.38 | G49: 81.54 | H49: 76.528 | I49: 2 | J49: 面试2室
A50: 48 | B50: B04 | C50: 水利技术人员（一）B04 | D50: 胡栋 | E50: 20252507724 | F50: 66.69 | G50: 83.68 | H50: 71.787 | I50: 1 | J50: 面试2室 | K50: 拟体检入围
A51: 49 | B51: B04 | C51: 水利技术人员（一）B04 | D51: 周曾宇 | E51: 20252507722 | F51: 66.43 | G51: 83.28 | H51: 71.485 | I51: 2 | J51: 面试2室
A52: 50 | B52: B05 | C52: 水利技术人员（二）B05 | D52: 刘孟欣 | E52: 20252607720 | F52: 70.04 | G52: 82.68 | H52: 73.832 | I52: 1 | J52: 面试2室 | K52: 拟体检入围
A53: 51 | B53: B05 | C53: 水利技术人员（二）B05 | D53: 黄佳期 | E53: 20252607706 | F53: 67.45 | G53: 81.26 | H53: 71.593 | I53: 2 | J53: 面试2室
A54: 52 | B54: B06 | C54: 机电技术人员B06 | D54: 李智 | E54: 20252709417 | F54: 68.59 | G54: 81.02 | H54: 72.319 | I54: 1 | J54: 面试2室 | K54: 拟体检入围
A55: 53 | B55: B06 | C55: 机电技术人员B06 | D55: 常明 | E55: 20252709406 | F55: 67.08 | G55: 80.22 | H55: 71.022 | I55: 2 | J55: 面试2室
A56: 54 | B56: B07 | C56: 工程审计人员（一）B07 | D56: 陈铭 | E56: 20252809724 | F56: 71.21 | G56: 82.38 | H56: 74.561 | I56: 1 | J56: 面试2室 | K56: 拟体检入围
A57: 55 | B57: B07 | C57: 工程审计人员（一）B07 | D57: 何华丽 | E57: 20252809423 | F57: 69.00 | G57: 83.22 | H57: 73.266 | I57: 2 | J57: 面试2室
A58: 56 | B58: B08 | C58: 工程审计人员（二）B08 | D58: 姜阑 | E58: 20252909616 | F58: 65.47 | G58: 82.86 | H58: 70.687 | I58: 1 | J58: 面试2室 | K58: 拟体检入围
A59: 57 | B59: B08 | C59: 工程审计人员（二）B08 | D59: 林汝恒 | E59: 20252909605 | F59: 64.12 | G59: 83.56 | H59: 69.952 | I59: 2 | J59: 面试2室
A60: 58 | B60: B09 | C60: 财务审计人员（一）B09 | D60: 张苗 | E60: 20253008511 | F60: 68.85 | G60: 84.06 | H60: 73.413 | I60: 1 | J60: 面试2室 | K60: 拟体检入围
A61: 59 | B61: B09 | C61: 财务审计人员（一）B09 | D61: 易成陈 | E61: 20253008427 | F61: 67.70 | G61: 83.76 | H61: 72.518 | I61: 2 | J61: 面试2室
A62: 60 | B62: B10 | C62: 财务审计人员（二）B10 | D62: 唐心琪 | E62: 20253108625 | F62: 74.86 | G62: 83.54 | H62: 77.464 | I62: 2 | J62: 面试2室
A63: 61 | B63: B10 | C63: 财务审计人员（二）B10 | D63: 林珂安 | E63: 20253108727 | F63: 74.79 | G63: 83.76 | H63: 77.481 | I63: 1 | J63: 面试2室 | K63: 拟体检入围
A64: 62 | B64: B11 | C64: 林业技术人员B11 | D64: 黄铃雅 | E64: 20253209327 | F64: 73.77 | G64: 84.72 | H64: 77.055 | I64: 1 | J64: 面试2室 | K64: 拟体检入围
A65: 63 | B65: B11 | C65: 林业技术人员B11 | D65: 杨海婷 | E65: 20253209328 | F65: 70.38 | G65: 81.38 | H65: 73.680 | I65: 2 | J65: 面试2室
A66: 64 | B66: B12 | C66: 计算机技术人员（一）B12 | D66: 李博 | E66: 20253305323 | F66: 79.19 | G66: 82.44 | H66: 80.165 | I66: 1 | J66: 面试3室 | K66: 拟体检入围
A67: 65 | B67: B12 | C67: 计算机技术人员（一）B12 | D67: 毛送文 | E67: 20253305126 | F67: 75.43 | G67: 79.68 | H67: 76.705 | I67: 2 | J67: 面试3室
A68: 66 | B68: B13 | C68: 道路建设养护人员（一）B13 | D68: 周耕 | E68: 20253411817 | F68: 77.63 | G68: 81.48 | H68: =F68*0.7+G68*0.3 -> 78.785 | I68: 1 | J68: 面试3室 | K68: 拟体检入围
A69: 67 | B69: B13 | C69: 道路建设养护人员（一）B13 | D69: 涂康 | E69: 20253412226 | F69: 72.24 | G69: 80.74 | H69: 74.790 | I69: 2 | J69: 面试3室
A70: 68 | B70: B14 | C70: 道路建设养护人员（二）B14 | D70: 付君恒 | E70: 20253512127 | F70: 81.15 | G70: 80.92 | H70: 81.081 | I70: 1 | J70: 面试3室 | K70: 拟体检入围
A71: 69 | B71: B14 | C71: 道路建设养护人员（二）B14 | D71: 黄淇伦 | E71: 20253512302 | F71: 79.99 | G71: 78.34 | H71: 79.495 | I71: 2 | J71: 面试3室 | K71: 拟体检入围
A72: 70 | B72: B14 | C72: 道路建设养护人员（二）B14 | D72: 邓嘉棚 | E72: 20253511825 | F72: 75.49 | G72: 80.08 | H72: 76.867 | I72: 3 | J72: 面试3室
A73: 71 | B73: B14 | C73: 道路建设养护人员（二）B14 | D73: 唐廉 | E73: 20253512416 | F73: 72.55 | G73: 81.74 | H73: 75.307 | I73: 4 | J73: 面试3室
A74: 72 | B74: B15 | C74: 新闻记者B15 | D74: 关源涛 | E74: 20253609811 | F74: 88.80 | G74: 80.44 | H74: 86.292 | I74: 1 | J74: 面试3室 | K74: 拟体检入围
A75: 73 | B75: B15 | C75: 新闻记者B15 | D75: 李芳暄 | E75: 20253609826 | F75: 75.40 | G75: 81.92 | H75: 77.356 | I75: 2 | J75: 面试3室 | K75: 拟体检入围
A76: 74 | B76: B15 | C76: 新闻记者B15 | D76: 屈艳 | E76: 20253609802 | F76: 70.70 | G76: 82.50 | H76: 74.240 | I76: 3 | J76: 面试3室
A77: 75 | B77: B15 | C77: 新闻记者B15 | D77: 易木兰 | E77: 20253609809 | F77: 69.40 | G77: 缺考 | H77: =F77*0.7 -> 48.580 | J77: 面试3室
A78: 76 | B78: B16 | C78: 编辑（一）B16 | D78: 巫筱婷 | E78: 20253706430 | F78: 79.72 | G78: 81.46 | H78: 80.242 | I78: 1 | J78: 面试3室 | K78: 拟体检入围
A79: 77 | B79: B16 | C79: 编辑（一）B16 | D79: 黄一丁 | E79: 20253706411 | F79: 74.22 | G79: 79.50 | H79: 75.804 | I79: 2 | J79: 面试3室
A80: 78 | B80: B17 | C80: 编辑（二）B17 | D80: 李根松 | E80: 20253806420 | F80: 77.05 | G80: 80.04 | H80: 77.947 | I80: 1 | J80: 面试3室 | K80: 拟体检入围
A81: 79 | B81: B17 | C81: 编辑（二）B17 | D81: 江东焌 | E81: 20253806426 | F81: 73.39 | G81: 82.52 | H81: 76.129 | I81: 2 | J81: 面试3室
A82: 80 | B82: B18 | C82: 计算机技术人员（二）B18 | D82: 郭乾 | E82: 20253905612 | F82: 79.69 | G82: 81.98 | H82: 80.377 | I82: 1 | J82: 面试3室 | K82: 拟体检入围
A83: 81 | B83: B18 | C83: 计算机技术人员（二）B18 | D83: 陈东 | E83: 20253905226 | F83: 73.09 | G83: 78.92 | H83: 74.839 | I83: 2 | J83: 面试3室
A84: 82 | B84: B19 | C84: 农机技术人员B19 | D84: 徐霞 | E84: 20254009921 | F84: 70.45 | G84: 82.26 | H84: 73.993 | I84: 1 | J84: 面试3室 | K84: 拟体检入围
A85: 83 | B85: B19 | C85: 农机技术人员B19 | D85: 狄志诚 | E85: 20254010102 | F85: 67.93 | G85: 80.78 | H85: 71.785 | I85: 2 | J85: 面试3室
A86: 84 | B86: B20 | C86: 工程技术人员B20 | D86: 胥望 | E86: 20254110217 | F86: 66.79 | G86: 82.92 | H86: 71.629 | I86: 1 | J86: 面试3室 | K86: 拟体检入围
A87: 85 | B87: B20 | C87: 工程技术人员B20 | D87: 张月星 | E87: 20254110222 | F87: 66.71 | G87: 80.12 | H87: 70.733 | I87: 2 | J87: 面试3室
A88: 86 | B88: B21 | C88: 计算机技术人员（三）B21 | D88: 常丹 | E88: 20254205212 | F88: 78.12 | G88: 81.38 | H88: 79.098 | I88: 1 | J88: 面试3室 | K88: 拟体检入围
A89: 87 | B89: B21 | C89: 计算机技术人员（三）B21 | D89: 贺子靖 | E89: 20254205412 | F89: 76.59 | G89: 83.90 | H89: 78.783 | I89: 2 | J89: 面试3室
A90: 88 | B90: B22 | C90: 财务人员（三）B22 | D90: 张煜哲 | E90: 20254307809 | F90: 76.57 | G90: 81.08 | H90: 77.923 | I90: 1 | J90: 面试3室 | K90: 拟体检入围
A91: 89 | B91: B22 | C91: 财务人员（三）B22 | D91: 陈婷 | E91: 20254307916 | F91: 73.25 | G91: 79.94 | H91: 75.257 | I91: 2 | J91: 面试3室
A92: 90 | B92: C01 | C92: 临床医师（一）C01 | D92: 鲁骞 | E92: 20254410326 | F92: 67.66 | G92: 76.08 | H92: 70.186 | I92: 1 | J92: 面试3室 | K92: 拟体检入围
A93: 91 | B93: C01 | C93: 临床医师（一）C01 | D93: 陈征宇 | E93: 20254410315 | F93: 63.38 | G93: 缺考 | H93: =F93*0.7 -> 44.366 | J93: 面试3室
A94: 92 | B94: C02 | C94: 妇产科医师C02 | D94: 朱梅子 | E94: 20254511724 | F94: 70.26 | G94: 77.16 | H94: 72.330 | I94: 1 | J94: 面试3室 | K94: 拟体检入围
A95: 93 | B95: C02 | C95: 妇产科医师C02 | D95: 赵月琳 | E95: 20254511721 | F95: 62.00 | G95: 缺考 | H95: =F95*0.7 -> 43.400 | J95: 面试3室
A96: 94 | B96: C03 | C96: 临床医师（二）C03 | D96: 杨斌剑 | E96: 20254610304 | F96: 65.26 | G96: 77.96 | H96: 69.070 | I96: 1 | J96: 面试3室 | K96: 拟体检入围
A97: 95 | B97: C03 | C97: 临床医师（二）C03 | D97: 李柯 | E97: 20254610307 | F97: 62.87 | G97: 77.28 | H97: 67.193 | I97: 2 | J97: 面试3室
A98: 96 | B98: C04 | C98: 临床医师（三）C04 | D98: 李湾 | E98: 20254710303 | F98: 71.52 | G98: 77.54 | H98: 73.326 | I98: 1 | J98: 面试4室 | K98: 拟体检入围
A99: 97 | B99: C04 | C99: 临床医师（三）C04 | D99: 周梓键 | E99: 20254710306 | F99: 66.65 | G99: 73.12 | H99: 68.591 | I99: 2 | J99: 面试4室
A100: 98 | B100: C05 | C100: 五官科医师C05 | D100: 杨玉姣 | E100: 20254809830 | F100: 64.41 | G100: 78.88 | H100: =F100*0.7+G100*0.3 -> 68.751 | I100: 1 | J100: 面试4室 | K100: 拟体检入围
A101: 99 | B101: C06 | C101: 麻醉科医师C06 | D101: 李雯萱 | E101: 20254910327 | F101: 62.13 | G101: 80.70 | H101: 67.701 | I101: 1 | J101: 面试4室 | K101: 拟体检入围
A102: 100 | B102: C07 | C102: 医学影像医师C07 | D102: 李佳诚 | E102: 20255006216 | F102: 75.50 | G102: 77.02 | H102: 75.956 | I102: 1 | J102: 面试4室 | K102: 拟体检入围
A103: 101 | B103: C07 | C103: 医学影像医师C07 | D103: 罗雅馨 | E103: 20255006221 | F103: 71.00 | G103: 79.34 | H103: 73.502 | I103: 2 | J103: 面试4室 | K103: 拟体检入围
A104: 102 | B104: C07 | C104: 医学影像医师C07 | D104: 童宸 | E104: 20255006214 | F104: 69.86 | G104: 缺考 | H104: =F104*0.7 -> 48.902 | J104: 面试4室
A105: 103 | B105: C08 | C105: 口腔医师C08 | D105: 何雨晴 | E105: 20255111725 | F105: 69.16 | G105: 78.76 | H105: 72.040 | I105: 1 | J105: 面试4室 | K105: 拟体检入围
A106: 104 | B106: C08 | C106: 口腔医师C08 | D106: 向杨丽 | E106: 20255111729 | F106: 67.57 | G106: 79.84 | H106: 71.251 | I106: 2 | J106: 面试4室
A107: 105 | B107: C09 | C107: 中医医师（一）C09 | D107: 黄嘉浚 | E107: 20255211521 | F107: 68.38 | G107: 78.54 | H107: 71.428 | I107: 1 | J107: 面试4室 | K107: 拟体检入围
A108: 106 | B108: C09 | C108: 中医医师（一）C09 | D108: 易洛娟 | E108: 20255211518 | F108: 66.82 | G108: 78.66 | H108: 70.372 | I108: 2 | J108: 面试4室 | K108: 拟体检入围
A109: 107 | B109: C09 | C109: 中医医师（一）C09 | D109: 彭真 | E109: 20255211516 | F109: 61.32 | G109: 缺考 | H109: =F109*0.7 -> 42.924 | J109: 面试4室
A110: 108 | B110: C09 | C110: 中医医师（一）C09 | D110: 张晨 | E110: 20255211523 | F110: 61.03 | G110: 缺考 | H110: =F110*0.7 -> 42.721 | J110: 面试4室
A111: 109 | B111: C11 | C111: 中医医师（三）C11 | D111: 易月池 | E111: 20255411514 | F111: 67.86 | G111: 缺考 | H111: =F111*0.7 -> 47.502 | J111: 面试4室
A112: 110 | B112: C11 | C112: 中医医师（三）C11 | D112: 曾祥华 | E112: 20255411519 | F112: 66.91 | G112: 78.40 | H112: 70.357 | I112: 1 | J112: 面试4室 | K112: 拟体检入围
A113: 111 | B113: C12 | C113: 公卫人员（一）C12 | D113: 高庆瑶 | E113: 20255511405 | F113: 70.99 | G113: 80.78 | H113: 73.927 | I113: 1 | J113: 面试4室 | K113: 拟体检入围
A114: 112 | B114: C12 | C114: 公卫人员（一）C12 | D114: 石梦 | E114: 20255511403 | F114: 70.95 | G114: 80.30 | H114: 73.755 | I114: 2 | J114: 面试4室
A115: 113 | B115: C13 | C115: 会计C13 | D115: 李雨桐 | E115: 20255609121 | F115: 73.76 | G115: 82.50 | H115: 76.382 | I115: 1 | J115: 面试4室 | K115: 拟体检入围
A116: 114 | B116: C13 | C116: 会计C13 | D116: 陆媛 | E116: 20255609013 | F116: 69.80 | G116: 81.34 | H116: 73.262 | I116: 2 | J116: 面试4室
A117: 115 | B117: C14 | C117: 公卫人员（二）C14 | D117: 童志鹏 | E117: 20255711429 | F117: 69.49 | G117: 79.14 | H117: 72.385 | I117: 1 | J117: 面试4室 | K117: 拟体检入围
A118: 116 | B118: C14 | C118: 公卫人员（二）C14 | D118: 刘薏倩 | E118: 20255711408 | F118: 66.01 | G118: 77.72 | H118: 69.523 | I118: 2 | J118: 面试4室
A119: 117 | B119: C15 | C119: 公卫人员（三）C15 | D119: 李扬帆 | E119: 20255811418 | F119: 69.00 | G119: 77.74 | H119: 71.622 | I119: 1 | J119: 面试4室 | K119: 拟体检入围
A120: 118 | B120: C15 | C120: 公卫人员（三）C15 | D120: 王俊 | E120: 20255811417 | F120: 64.50 | G120: 78.30 | H120: 68.640 | I120: 2 | J120: 面试4室
A121: 119 | B121: C16 | C121: 护士C16 | D121: 何汐婷 | E121: 20255906112 | F121: 77.25 | G121: 77.88 | H121: 77.439 | I121: 1 | J121: 面试4室 | K121: 拟体检入围
A122: 120 | B122: C16 | C122: 护士C16 | D122: 马慧 | E122: 20255905814 | F122: 72.84 | G122: 79.36 | H122: 74.796 | I122: 2 | J122: 面试4室
A123: 121 | B123: C17 | C123: 检验技术人员（一）C17 | D123: 闾杏 | E123: 20256010421 | F123: 75.19 | G123: 81.46 | H123: 77.071 | I123: 1 | J123: 面试4室 | K123: 拟体检入围
A124: 122 | B124: C17 | C124: 检验技术人员（一）C17 | D124: 梅雅婷 | E124: 20256010514 | F124: 67.74 | G124: 80.68 | H124: 71.622 | I124: 2 | J124: 面试4室
A125: 123 | B125: C18 | C125: 检验技术人员（二）C18 | D125: 邱佳欣 | E125: 20256110414 | F125: 70.84 | G125: 80.18 | H125: 73.642 | I125: 1 | J125: 面试4室 | K125: 拟体检入围
A126: 124 | B126: C18 | C126: 检验技术人员（二）C18 | D126: 侯雨晴 | E126: 20256110401 | F126: 66.02 | G126: 79.74 | H126: 70.136 | I126: 2 | J126: 面试4室
A127: 125 | B127: C19 | C127: 药剂人员（一）C19 | D127: 胥伊冉 | E127: 20256211616 | F127: 73.29 | G127: 83.34 | H127: 76.305 | I127: 1 | J127: 面试4室 | K127: 拟体检入围
A128: 126 | B128: C19 | C128: 药剂人员（一）C19 | D128: 肖永成 | E128: 20256211619 | F128: 71.18 | G128: 79.00 | H128: 73.526 | I128: 2 | J128: 面试4室
A129: 127 | B129: C20 | C129: 药剂人员（二）C20 | D129: 陈佳怡 | E129: 20256311602 | F129: 72.56 | G129: 80.36 | H129: 74.900 | I129: 1 | J129: 面试4室 | K129: 拟体检入围
A130: 128 | B130: C20 | C130: 药剂人员（二）C20 | D130: 毛日丽 | E130: 20256311603 | F130: 63.26 | G130: 77.00 | H130: 67.382 | I130: 2 | J130: 面试4室
A131: 129 | B131: D01 | C131: 美术技术人员D01 | D131: 王心怡 | E131: 20256411330 | F131: 74.50 | G131: 81.59 | H131: =F131*0.3+G131*0.7 -> 79.463 | I131: 1 | J131: 面试5室 | K131: 拟体检入围
A132: 130 | B132: D01 | C132: 美术技术人员D01 | D132: 龙丽花 | E132: 20256411101 | F132: 71.24 | G132: 76.71 | H132: =F132*0.3+G132*0.7 -> 75.069 | I132: 7 | J132: 面试5室
A133: 131 | B133: D01 | C133: 美术技术人员D01 | D133: 周洋洋 | E133: 20256410818 | F133: 69.86 | G133: 78.57 | H133: 75.957 | I133: 6 | J133: 面试5室
A134: 132 | B134: D01 | C134: 美术技术人员D01 | D134: 李颖玉 | E134: 20256411128 | F134: 68.47 | G134: 81.20 | H134: 77.381 | I134: 4 | J134: 面试5室
A135: 133 | B135: D01 | C135: 美术技术人员D01 | D135: 田丘 | E135: 20256410825 | F135: 67.98 | G135: 80.03 | H135: 76.415 | I135: 5 | J135: 面试5室
A136: 134 | B136: D01 | C136: 美术技术人员D01 | D136: 赵贲 | E136: 20256410710 | F136: 67.51 | G136: 77.97 | H136: 74.832 | I136: 8 | J136: 面试5室
A137: 135 | B137: D01 | C137: 美术技术人员D01 | D137: 赵晖 | E137: 20256411326 | F137: 66.77 | G137: 83.16 | H137: 78.243 | I137: 3 | J137: 面试5室
A138: 136 | B138: D01 | C138: 美术技术人员D01 | D138: 李赢 | E138: 20256411206 | F138: 65.48 | G138: 84.74 | H138: 78.962 | I138: 2 | J138: 面试5室
A139: 137 | B139: D01 | C139: 美术技术人员D01 | D139: 王思怡 | E139: 20256410927 | F139: 65.44 | G139: 78.46 | H139: 74.554 | I139: 10 | J139: 面试5室
A140: 138 | B140: D01 | C140: 美术技术人员D01 | D140: 殷锴 | E140: 20256410829 | F140: 65.01 | G140: 79.02 | H140: 74.817 | I140: 9 | J140: 面试5室
